fUST/lending_fUST_20260607
["ID","MTS","AMOUNT","RATE_DAILY","PERIOD"]
[424380949,1780824648000,-1494.25856793,0.00019726,2]
[424380951,1780824648000,-1609.3606107,0.0002,2]
[424380982,1780824648000,-1939.60075079,0.0002,2]
[424380980,1780824648000,-1415.0,0.00018593,2]
[424381480,1780824762000,-2558.75639313,7.599e-05,2]
[424381497,1780825006000,-2816.33035571,7.596e-05,2]
[424381519,1780825367000,-2788.16705215,7.593e-05,2]
[424381533,1780825629000,-1975.02387928,7.591e-05,2]
[424381532,1780825629000,-2760.28538163,7.591e-05,2]
[424381531,1780825629000,-2760.28538163,7.591e-05,2]
[424381536,1780825650000,-2760.28538163,7.591e-05,2]
[424381535,1780825650000,-785.26150235,7.591e-05,2]
[424381537,1780825650000,-2760.28538163,7.591e-05,2]
[424381540,1780825650000,-2760.28538163,7.591e-05,2]
[424381541,1780825650000,-2479.36439468,7.591e-05,2]
[424381539,1780825650000,-2760.28538163,7.591e-05,2]
[424381538,1780825650000,-2760.28538163,7.591e-05,2]
[424381542,1780825727000,-2514.66890716,7.59e-05,2]
[424381555,1780825762000,-2514.66890716,7.59e-05,2]
[424381560,1780825762000,-500.0,7.59e-05,2]
[424381559,1780825762000,-2514.66890716,7.59e-05,2]
[424381558,1780825762000,-500.0,7.59e-05,2]
[424381557,1780825762000,-2514.66890716,7.59e-05,2]
[424381556,1780825762000,-227.08985917,7.59e-05,2]
[424381553,1780825762000,-2514.66890716,7.59e-05,2]
[424381547,1780825762000,-2514.66890716,7.59e-05,2]
[424381551,1780825762000,-2514.66890716,7.59e-05,2]
[424381552,1780825762000,-2514.66890716,7.59e-05,2]
[424381548,1780825762000,-2514.66890716,7.59e-05,2]
[424381550,1780825762000,-2514.66890716,7.59e-05,2]
[424381549,1780825762000,-2514.66890716,7.59e-05,2]
[424381546,1780825762000,-2514.66890716,7.59e-05,2]
[424381563,1780825762000,-2514.66890716,7.59e-05,2]
[424381554,1780825762000,-2514.66890716,7.59e-05,2]
[424381562,1780825762000,-213.2185131,7.59e-05,2]
[424381578,1780825762000,-500.0,7.59e-05,2]
[424381565,1780825762000,-500.0,7.59e-05,2]
[424381580,1780825762000,-500.0,7.59e-05,2]
[424381561,1780825762000,-500.0,7.59e-05,2]
[424381577,1780825762000,-2514.66890716,7.59e-05,2]
[424381579,1780825762000,-593.8059439,7.59e-05,2]
[424381576,1780825762000,-500.0,7.59e-05,2]
[424381575,1780825762000,-500.0,7.59e-05,2]
[424381573,1780825762000,-500.0,7.59e-05,2]
[424381574,1780825762000,-500.0,7.59e-05,2]
[424381571,1780825762000,-2514.66890716,7.59e-05,2]
[424381570,1780825762000,-500.0,7.59e-05,2]
[424381569,1780825762000,-500.0,7.59e-05,2]
[424381568,1780825762000,-500.0,7.59e-05,2]
[424381567,1780825762000,-500.0,7.59e-05,2]
[424381566,1780825762000,-2514.66890716,7.59e-05,2]
[424381564,1780825762000,-500.0,7.59e-05,2]
[424381572,1780825762000,-500.0,7.59e-05,2]
[424381592,1780825763000,-500.0,7.59e-05,2]
[424381600,1780825763000,-2514.66890716,7.59e-05,2]
[424381596,1780825763000,-500.0,7.59e-05,2]
[424381594,1780825763000,-500.0,7.59e-05,2]
[424381581,1780825763000,-500.0,7.59e-05,2]
[424381593,1780825763000,-500.0,7.59e-05,2]
[424381591,1780825763000,-500.0,7.59e-05,2]
[424381582,1780825763000,-500.0,7.59e-05,2]
[424381590,1780825763000,-500.0,7.59e-05,2]
[424381586,1780825763000,-500.0,7.59e-05,2]
[424381588,1780825763000,-500.0,7.59e-05,2]
[424381587,1780825763000,-311.25655139,7.59e-05,2]
[424381585,1780825763000,-500.0,7.59e-05,2]
[424381584,1780825763000,-500.0,7.59e-05,2]
[424381583,1780825763000,-500.0,7.59e-05,2]
[424381598,1780825763000,-500.0,7.59e-05,2]
[424381589,1780825763000,-500.0,7.59e-05,2]
[424381599,1780825763000,-500.0,7.59e-05,2]
[424381595,1780825763000,-500.0,7.59e-05,2]
[424381601,1780825763000,-500.0,7.59e-05,2]
[424381597,1780825763000,-500.0,7.59e-05,2]
[424381619,1780825763000,-500.0,7.59e-05,2]
[424381618,1780825763000,-500.0,7.59e-05,2]
[424381617,1780825763000,-500.0,7.59e-05,2]
[424381614,1780825763000,-500.0,7.59e-05,2]
[424381615,1780825763000,-500.0,7.59e-05,2]
[424381616,1780825763000,-500.0,7.59e-05,2]
[424381613,1780825763000,-500.0,7.59e-05,2]
[424381612,1780825763000,-500.0,7.59e-05,2]
[424381605,1780825763000,-500.0,7.59e-05,2]
[424381611,1780825763000,-500.0,7.59e-05,2]
[424381610,1780825763000,-500.0,7.59e-05,2]
[424381604,1780825763000,-500.0,7.59e-05,2]
[424381603,1780825763000,-2514.66890716,7.59e-05,2]
[424381602,1780825763000,-500.0,7.59e-05,2]
[424381608,1780825763000,-2514.66890716,7.59e-05,2]
[424381607,1780825763000,-500.0,7.59e-05,2]
[424381609,1780825763000,-500.0,7.59e-05,2]
[424381606,1780825763000,-500.0,7.59e-05,2]
[424381630,1780825764000,-369.59143895,7.59e-05,2]
[424381635,1780825764000,-500.0,7.59e-05,2]
[424381636,1780825764000,-500.0,7.59e-05,2]
[424381633,1780825764000,-500.0,7.59e-05,2]
[424381632,1780825764000,-500.0,7.59e-05,2]
[424381631,1780825764000,-130.40856105,7.59e-05,2]
[424381629,1780825764000,-500.0,7.59e-05,2]
[424381626,1780825764000,-500.0,7.59e-05,2]
[424381624,1780825764000,-500.0,7.59e-05,2]
[424381628,1780825764000,-500.0,7.59e-05,2]
[424381627,1780825764000,-500.0,7.59e-05,2]
[424381638,1780825764000,-500.0,7.59e-05,2]
[424381623,1780825764000,-500.0,7.59e-05,2]
[424381622,1780825764000,-500.0,7.59e-05,2]
[424381621,1780825764000,-500.0,7.59e-05,2]
[424381620,1780825764000,-500.0,7.59e-05,2]
[424381625,1780825764000,-500.0,7.59e-05,2]
[424381637,1780825764000,-500.0,7.59e-05,2]
[424381634,1780825764000,-500.0,7.59e-05,2]
[424381642,1780825764000,-500.0,7.59e-05,2]
[424381639,1780825764000,-500.0,7.59e-05,2]
[424381656,1780825764000,-500.0,7.59e-05,2]
[424381655,1780825764000,-500.0,7.59e-05,2]
[424381654,1780825764000,-500.0,7.59e-05,2]
[424381652,1780825764000,-2514.66890715,7.59e-05,2]
[424381653,1780825764000,-500.0,7.59e-05,2]
[424381651,1780825764000,-500.0,7.59e-05,2]
[424381650,1780825764000,-2514.66890715,7.59e-05,2]
[424381649,1780825764000,-2514.66890715,7.59e-05,2]
[424381657,1780825764000,-500.0,7.59e-05,2]
[424381647,1780825764000,-2514.66890715,7.59e-05,2]
[424381645,1780825764000,-2514.66890715,7.59e-05,2]
[424381646,1780825764000,-2514.66890715,7.59e-05,2]
[424381643,1780825764000,-2514.66890715,7.59e-05,2]
[424381644,1780825764000,-2514.66890715,7.59e-05,2]
[424381641,1780825764000,-500.0,7.59e-05,2]
[424381640,1780825764000,-500.0,7.59e-05,2]
[424381648,1780825764000,-2514.66890715,7.59e-05,2]
[424381673,1780825765000,-300.0,7.75e-05,2]
[424381672,1780825765000,-300.0,7.75e-05,2]
[424381671,1780825765000,-300.0,7.75e-05,2]
[424381670,1780825765000,-300.0,7.75e-05,2]
[424381668,1780825765000,-600.0,7.749e-05,2]
[424381669,1780825765000,-300.0,7.75e-05,2]
[424381665,1780825765000,-500.0,7.59e-05,2]
[424381666,1780825765000,-500.0,7.59e-05,2]
[424381659,1780825765000,-500.0,7.59e-05,2]
[424381664,1780825765000,-500.0,7.59e-05,2]
[424381663,1780825765000,-500.0,7.59e-05,2]
[424381661,1780825765000,-500.0,7.59e-05,2]
[424381662,1780825765000,-500.0,7.59e-05,2]
[424381660,1780825765000,-500.0,7.59e-05,2]
[424381658,1780825765000,-649.99999999,7.59e-05,2]
[424381674,1780825765000,-300.0,7.75e-05,2]
[424381667,1780825765000,-4448.36258405,7.59e-05,2]
[424381675,1780825765000,-300.0,7.75e-05,2]
[424381690,1780825765000,-500.0,8.493e-05,2]
[424381677,1780825765000,-300.0,7.75e-05,2]
[424381676,1780825765000,-300.0,7.75e-05,2]
[424381692,1780825765000,-211.11486623,8.592e-05,2]
[424381693,1780825765000,-500.0,8.767e-05,2]
[424381691,1780825765000,-720.0,8.524e-05,2]
[424381689,1780825765000,-500.0,8.219e-05,2]
[424381688,1780825765000,-320.40074116,8.219e-05,2]
[424381687,1780825765000,-490.36539315,8.219e-05,2]
[424381686,1780825765000,-5000.0,8e-05,2]
[424381694,1780825765000,-500.0,9.041e-05,2]
[424381684,1780825765000,-5000.0,8e-05,2]
[424381685,1780825765000,-814.56269224,8e-05,2]
[424381678,1780825765000,-300.0,7.75e-05,2]
[424381681,1780825765000,-300.0,7.75e-05,2]
[424381679,1780825765000,-300.0,7.75e-05,2]
[424381682,1780825765000,-300.0,7.75e-05,2]
[424381683,1780825765000,-300.0,7.75e-05,2]
[424381680,1780825765000,-300.0,7.75e-05,2]
[424381695,1780825766000,-500.0,9.315e-05,2]
[424381696,1780825766000,-864.0,9.376e-05,2]
[424381704,1780825766000,-1000.0,0.0001248,2]
[424381697,1780825766000,-500.0,9.589e-05,2]
[424381699,1780825766000,-326.2368232,0.0001,2]
[424381700,1780825766000,-161.7,0.0001,2]
[424381698,1780825766000,-3291.99619775,0.0001,2]
[424381701,1780825766000,-1000.0,0.00010314,2]
[424381702,1780825766000,-1000.0,0.00011345,2]
[424381707,1780825766000,-1000.0,0.00013728,2]
[424381706,1780825766000,-313.5053014,0.00013699,2]
[424381705,1780825766000,-492.0,0.0001248,2]
[424381708,1780825766000,-791.0,0.00013728,2]
[424381710,1780825766000,-1000.0,0.000151,2]
[424381709,1780825766000,-1000.0,0.000151,2]
[424381711,1780825766000,-1000.0,0.00016611,2]
[424381713,1780825766000,-229.0,0.00016611,2]
[424381703,1780825766000,-244.0,0.00011345,2]
[424381712,1780825766000,-1000.0,0.00016611,2]
[424381714,1780825769000,1000.0,0.00016611,2]
[424381715,1780825770000,1000.0,0.00016611,2]
[424381716,1780825771000,1000.0,0.00016611,2]
[424381717,1780825772000,1000.0,0.00016611,2]
[424381718,1780825773000,1026.7545335,0.00016611,2]
[424381863,1780825832000,-300.0,0.00018162,2]
[424381864,1780825832000,-358.05528406,0.00018162,2]
[424381872,1780825832000,-1837.0,0.00018675,2]
[424381866,1780825832000,-1216.72945641,0.00018162,2]
[424381867,1780825832000,-2089.29135634,0.00018162,2]
[424381869,1780825832000,-171.6857523,0.0001853,2]
[424381868,1780825832000,-5000.0,0.00018345,2]
[424381873,1780825832000,-505.94,0.00018904,2]
[424381878,1780825832000,-397.65884695,0.00019,2]
[424381870,1780825832000,-505.94,0.0001863,2]
[424381884,1780825832000,-3471.58656761,0.00019,2]
[424381881,1780825832000,-1632.72484775,0.00019,2]
[424381883,1780825832000,-1634.8,0.00019,2]
[424381880,1780825832000,-4613.8867593,0.00019,2]
[424381876,1780825832000,-818.31554441,0.00018978,2]
[424381874,1780825832000,-184.671,0.00018978,2]
[424381988,1780825838000,-1896.22808946,0.0001881,2]
[424381981,1780825838000,-556.93944,0.0001881,2]
[424382040,1780825841000,-1840.03539928,0.0001881,2]
[424382109,1780825843000,-500.0,0.00019178,2]
[424382113,1780825843000,-1000.0,0.00019178,2]
[424382117,1780825843000,-500.0,0.00019178,2]
[424382130,1780825843000,-500.0,0.00019178,2]
[424382131,1780825843000,-2206.6,0.00019178,2]
[424382118,1780825843000,-960.56,0.00019178,2]
[424382129,1780825843000,-500.0,0.00019178,2]
[424382120,1780825843000,-500.0,0.00019178,2]
[424382125,1780825843000,-500.0,0.00019178,2]
[424382123,1780825843000,-1193.14,0.00019178,2]
[424382139,1780825843000,-500.0,0.00019178,2]
[424382121,1780825843000,-891.48,0.00019178,2]
[424382126,1780825843000,-500.0,0.00019178,2]
[424382124,1780825843000,-1290.0,0.00019178,2]
[424382122,1780825843000,-500.0,0.00019178,2]
[424382132,1780825843000,-590.92,0.00019178,2]
[424382133,1780825843000,-790.65,0.00019178,2]
[424382134,1780825843000,-500.0,0.00019178,2]
[424382135,1780825843000,-500.0,0.00019178,2]
[424382137,1780825843000,-500.0,0.00019178,2]
[424382110,1780825843000,-500.0,0.00019178,2]
[424382127,1780825843000,-500.0,0.00019178,2]
[424382112,1780825843000,-500.0,0.00019178,2]
[424382099,1780825843000,-500.0,0.00019178,2]
[424382108,1780825843000,-712.62,0.00019178,2]
[424382087,1780825843000,-706.79707126,0.0001881,2]
[424382088,1780825843000,-431.33033652,0.00019,2]
[424382089,1780825843000,-12818.01264187,0.00019,2]
[424382091,1780825843000,-2030.02503476,0.00019078,2]
[424382093,1780825843000,-501.25717517,0.00019178,2]
[424382092,1780825843000,-648.17,0.00019178,2]
[424382095,1780825843000,-500.0,0.00019178,2]
[424382096,1780825843000,-500.0,0.00019178,2]
[424382098,1780825843000,-500.0,0.00019178,2]
[424382097,1780825843000,-500.0,0.00019178,2]
[424382100,1780825843000,-500.0,0.00019178,2]
[424382090,1780825843000,-293.06704954,0.00019078,2]
[424382145,1780825843000,-890.83,0.00019178,2]
[424382101,1780825843000,-500.0,0.00019178,2]
[424382104,1780825843000,-315.06927051,0.00019178,2]
[424382114,1780825843000,-500.0,0.00019178,2]
[424382103,1780825843000,-760.65,0.00019178,2]
[424382116,1780825843000,-500.0,0.00019178,2]
[424382115,1780825843000,-500.0,0.00019178,2]
[424382106,1780825843000,-671.26,0.00019178,2]
[424382105,1780825843000,-1196.78,0.00019178,2]
[424382107,1780825843000,-500.0,0.00019178,2]
[424382141,1780825843000,-500.0,0.00019178,2]
[424382140,1780825843000,-595.64,0.00019178,2]
[424382138,1780825843000,-500.0,0.00019178,2]
[424382165,1780825843000,-500.0,0.00019178,2]
[424382176,1780825843000,-537.93,0.00019178,2]
[424382179,1780825843000,-500.0,0.00019178,2]
[424382180,1780825843000,-500.0,0.00019178,2]
[424382177,1780825843000,-500.0,0.00019178,2]
[424382190,1780825843000,-607.45,0.00019178,2]
[424382185,1780825843000,-2890.74,0.00019178,2]
[424382183,1780825843000,-1378.67,0.00019178,2]
[424382189,1780825843000,-500.0,0.00019178,2]
[424382142,1780825843000,-500.0,0.00019178,2]
[424382167,1780825843000,-500.0,0.00019178,2]
[424382182,1780825843000,-500.0,0.00019178,2]
[424382187,1780825843000,-500.0,0.00019178,2]
[424382188,1780825843000,-500.0,0.00019178,2]
[424382192,1780825843000,-2198.27,0.00019178,2]
[424382191,1780825843000,-1158.74,0.00019178,2]
[424382194,1780825843000,-1382.31,0.00019178,2]
[424382193,1780825843000,-582.25,0.00019178,2]
[424382199,1780825843000,-826.85,0.00019178,2]
[424382197,1780825843000,-500.0,0.00019178,2]
[424382198,1780825843000,-500.0,0.00019178,2]
[424382196,1780825843000,-500.0,0.00019178,2]
[424382184,1780825843000,-500.0,0.00019178,2]
[424382164,1780825843000,-500.0,0.00019178,2]
[424382181,1780825843000,-500.0,0.00019178,2]
[424382168,1780825843000,-500.0,0.00019178,2]
[424382162,1780825843000,-1056.03,0.00019178,2]
[424382143,1780825843000,-831.71,0.00019178,2]
[424382146,1780825843000,-500.0,0.00019178,2]
[424382148,1780825843000,-500.0,0.00019178,2]
[424382149,1780825843000,-923.86,0.00019178,2]
[424382147,1780825843000,-500.0,0.00019178,2]
[424382156,1780825843000,-680.98,0.00019178,2]
[424382152,1780825843000,-1949.12,0.00019178,2]
[424382155,1780825843000,-1615.44,0.00019178,2]
[424382154,1780825843000,-561.31,0.00019178,2]
[424382157,1780825843000,-500.0,0.00019178,2]
[424382151,1780825843000,-500.0,0.00019178,2]
[424382159,1780825843000,-588.11,0.00019178,2]
[424382166,1780825843000,-500.0,0.00019178,2]
[424382158,1780825843000,-500.0,0.00019178,2]
[424382175,1780825843000,-500.0,0.00019178,2]
[424382163,1780825843000,-2124.87,0.00019178,2]
[424382160,1780825843000,-1130.89,0.00019178,2]
[424382170,1780825843000,-500.0,0.00019178,2]
[424382174,1780825843000,-597.5942767,0.00019178,2]
[424382173,1780825843000,-500.0,0.00019178,2]
[424382171,1780825843000,-456.37455231,0.00019178,2]
[424382172,1780825843000,-2161.5,0.00019178,2]
[424382205,1780825844000,-578.64,0.00019178,2]
[424382202,1780825844000,-581.23,0.00019178,2]
[424382204,1780825844000,-695.69,0.00019178,2]
[424382201,1780825844000,-500.0,0.00019178,2]
[424382200,1780825844000,-2074.77,0.00019178,2]
[424382206,1780825844000,-1213.69,0.00019178,2]
[424382216,1780825844000,-305.15505788,0.00019178,2]
[424382208,1780825844000,-2175.71,0.00019178,2]
[424382215,1780825844000,-122.93837493,0.00019178,2]
[424382214,1780825844000,-500.0,0.00019178,2]
[424382209,1780825844000,-541.95,0.00019178,2]
[424382212,1780825844000,-675.36,0.00019178,2]
[424382207,1780825844000,-695.07,0.00019178,2]
[424382217,1780825844000,-71.90656719,0.00019178,2]
[424382213,1780825844000,-500.0,0.00019178,2]
[424382218,1780825844000,-348.09343281,0.00019178,2]
[424382211,1780825844000,-929.25,0.00019178,2]
[424382267,1780825846000,-484.93728198,0.00019178,2]
[424382266,1780825846000,-347.90656719,0.00019178,2]
[424382264,1780825846000,-152.09343281,0.00019178,2]
[424382263,1780825846000,-151.90656719,0.00019178,2]
[424385309,1780825931000,500.0,0.00010958,2]
[424396789,1780826742000,-5000.0,0.00017069,2]
[424396790,1780826742000,-166.66666666,0.00017241,2]
[424396792,1780826742000,-415.5903852,0.00017518,2]
[424396791,1780826742000,-2686.71551287,0.0001734,2]
[424396794,1780826742000,-171.06197252,0.00018486,2]
[424396796,1780826742000,-134.0944823,0.00018776,2]
[424396795,1780826742000,-521.78,0.0001863,2]
[424396793,1780826742000,-196.21905547,0.00018471,2]
[424396800,1780826851000,-500.0,0.00017067,2]
[424396801,1780826851000,-500.0,0.00017067,2]
[424396803,1780826851000,-500.0,0.00017067,2]
[424396802,1780826851000,-500.0,0.00017067,2]
[424396804,1780826851000,-500.0,0.00017067,2]
[424396806,1780826851000,-500.0,0.00017067,2]
[424396805,1780826851000,-500.0,0.00017067,2]
[424396807,1780826851000,-500.0,0.00017067,2]
[424396809,1780826851000,-500.0,0.00017067,2]
[424396808,1780826851000,-500.0,0.00017067,2]
[424396811,1780826851000,-500.0,0.00017067,2]
[424396810,1780826851000,-197.19718212,0.00017067,2]
[424396813,1780826851000,-500.0,0.00017067,2]
[424396824,1780826851000,-2082.30904,0.00018775,2]
[424396823,1780826851000,-2861.02187031,0.00018775,2]
[424396822,1780826851000,-518.13576613,0.00018775,2]
[424396812,1780826851000,-500.0,0.00017067,2]
[424396820,1780826851000,-263.07075888,0.0001874,2]
[424396818,1780826851000,-538.748,0.00018655,2]
[424396821,1780826851000,-761.70253115,0.00018765,2]
[424396817,1780826851000,-5000.0,0.00018552,2]
[424396815,1780826851000,-158.10351722,0.00018476,2]
[424396816,1780826851000,-176.59714992,0.00018476,2]
[424396814,1780826851000,-332.00183395,0.00017067,2]
[424396819,1780826851000,-186.0,0.00018655,2]
[424396860,1780827032000,-2811.58856121,0.00018253,2]
[424396854,1780827032000,-189.693871,0.00017805,2]
[424396865,1780827032000,-2612.62975967,0.00018253,2]
[424396858,1780827032000,-93.36325875,0.00018153,2]
[424396869,1780827032000,-2811.58856121,0.00018253,2]
[424396856,1780827032000,-573.12645598,0.00018153,2]
[424396867,1780827032000,-198.95880154,0.00018253,2]
[424396873,1780827032000,-2290.62991434,0.00018253,2]
[424396872,1780827032000,-2811.58856121,0.00018253,2]
[424396875,1780827032000,-2811.58856121,0.00018253,2]
[424396877,1780827032000,-2811.58856121,0.00018253,2]
[424396871,1780827032000,-362.69503629,0.00018253,2]
[424396878,1780827032000,-2110.85025277,0.00018253,2]
[424396874,1780827032000,-520.95864687,0.00018253,2]
[424396876,1780827032000,-2811.58856121,0.00018253,2]
[424396880,1780827033000,-700.73830844,0.00018253,2]
[424396882,1780827033000,-244.13302023,0.00018253,2]
[424396881,1780827033000,-536.88909266,0.00018253,2]
[424396883,1780827033000,-693.2270953,0.00018253,2]
[424396884,1780827033000,-1305.8502207,0.00018253,2]
[424396902,1780827038000,-3022.45770329,0.00018253,2]
[424396901,1780827038000,-3022.45770329,0.00018253,2]
[424396910,1780827038000,-7607.6676741,0.00018775,2]
[424396900,1780827038000,-3022.45770329,0.00018253,2]
[424396898,1780827038000,-3022.45770329,0.00018253,2]
[424396897,1780827038000,-3022.45770329,0.00018253,2]
[424396892,1780827038000,-2811.58856121,0.00018253,2]
[424396896,1780827038000,-3022.45770329,0.00018253,2]
[424396893,1780827038000,-2811.58856121,0.00018253,2]
[424396895,1780827038000,-3022.45770329,0.00018253,2]
[424396890,1780827038000,-812.51124521,0.00018253,2]
[424396891,1780827038000,-2811.58856121,0.00018253,2]
[424396903,1780827038000,-3022.45770329,0.00018253,2]
[424396899,1780827038000,-3022.45770329,0.00018253,2]
[424396904,1780827038000,-3022.45770329,0.00018253,2]
[424396894,1780827038000,-2811.58856121,0.00018253,2]
[424396911,1780827038000,-14736.71164042,0.00018776,2]
[424396921,1780827038000,-451.88309075,0.00019078,2]
[424396922,1780827038000,-226158.35642255,0.00019078,2]
[424396920,1780827038000,-5221.06329729,0.00019078,2]
[424396919,1780827038000,-2994.45011022,0.00019078,2]
[424396917,1780827038000,-16189.22536014,0.00019078,2]
[424396918,1780827038000,-33600.0000008,0.00019078,2]
[424396915,1780827038000,-166.25958936,0.00018944,2]
[424396916,1780827038000,-450.50205335,0.00019019,2]
[424396913,1780827038000,-666.48971471,0.00018833,2]
[424396912,1780827038000,-184.671,0.00018804,2]
[424396909,1780827038000,-1000.0,0.00018717,5]
[424396907,1780827038000,-158.93743493,0.00018479,2]
[424396908,1780827038000,-5000.0,0.00018587,2]
[424396906,1780827038000,-14071.5193378,0.00018254,2]
[424396914,1780827038000,-521.78,0.00018904,2]
[424396905,1780827038000,-4270.44023887,0.00018253,2]
[424396964,1780827040000,-3250.67284012,0.00019078,2]
[424396958,1780827040000,-1900.18344694,0.00019078,2]
[424396955,1780827040000,-5000.0,0.00018887,2]
[424397059,1780827044000,-1032.458675,0.00019078,2]
[424397105,1780827046000,-12859.48680107,0.00019078,2]
[424397151,1780827301000,-2779.31,0.00016495,2]
[424397377,1780828155000,-500.0,8.261e-05,2]
[424397392,1780828155000,-500.0,8.261e-05,2]
[424397393,1780828155000,-500.0,8.261e-05,2]
[424397391,1780828155000,-500.0,8.261e-05,2]
[424397389,1780828155000,-500.0,8.261e-05,2]
[424397390,1780828155000,-500.0,8.261e-05,2]
[424397388,1780828155000,-500.0,8.261e-05,2]
[424397385,1780828155000,-500.0,8.261e-05,2]
[424397387,1780828155000,-500.0,8.261e-05,2]
[424397384,1780828155000,-500.0,8.261e-05,2]
[424397383,1780828155000,-500.0,8.261e-05,2]
[424397381,1780828155000,-500.0,8.261e-05,2]
[424397382,1780828155000,-500.0,8.261e-05,2]
[424397380,1780828155000,-500.0,8.261e-05,2]
[424397379,1780828155000,-500.0,8.261e-05,2]
[424397378,1780828155000,-500.0,8.261e-05,2]
[424397386,1780828155000,-500.0,8.261e-05,2]
[424397398,1780828155000,-500.0,8.261e-05,2]
[424397396,1780828155000,-500.0,8.261e-05,2]
[424397394,1780828155000,-500.0,8.261e-05,2]
[424397395,1780828155000,-500.0,8.261e-05,2]
[424397414,1780828155000,-500.0,8.261e-05,2]
[424397411,1780828155000,-500.0,8.261e-05,2]
[424397412,1780828155000,-500.0,8.261e-05,2]
[424397410,1780828155000,-500.0,8.261e-05,2]
[424397409,1780828155000,-500.0,8.261e-05,2]
[424397406,1780828155000,-500.0,8.261e-05,2]
[424397404,1780828155000,-500.0,8.261e-05,2]
[424397413,1780828155000,-500.0,8.261e-05,2]
[424397407,1780828155000,-500.0,8.261e-05,2]
[424397405,1780828155000,-500.0,8.261e-05,2]
[424397403,1780828155000,-500.0,8.261e-05,2]
[424397402,1780828155000,-500.0,8.261e-05,2]
[424397401,1780828155000,-500.0,8.261e-05,2]
[424397399,1780828155000,-500.0,8.261e-05,2]
[424397400,1780828155000,-500.0,8.261e-05,2]
[424397408,1780828155000,-257.61282271,8.261e-05,2]
[424397397,1780828155000,-500.0,8.261e-05,2]
[424397429,1780828156000,-500.0,8.261e-05,2]
[424397430,1780828156000,-500.0,8.261e-05,2]
[424397432,1780828156000,-500.0,8.261e-05,2]
[424397431,1780828156000,-500.0,8.261e-05,2]
[424397435,1780828156000,-500.0,8.261e-05,2]
[424397434,1780828156000,-500.0,8.261e-05,2]
[424397436,1780828156000,-500.0,8.261e-05,2]
[424397437,1780828156000,-500.0,8.261e-05,2]
[424397439,1780828156000,-500.0,8.261e-05,2]
[424397433,1780828156000,-500.0,8.261e-05,2]
[424397427,1780828156000,-500.0,8.261e-05,2]
[424397418,1780828156000,-500.0,8.261e-05,2]
[424397425,1780828156000,-500.0,8.261e-05,2]
[424397426,1780828156000,-500.0,8.261e-05,2]
[424397420,1780828156000,-500.0,8.261e-05,2]
[424397422,1780828156000,-500.0,8.261e-05,2]
[424397423,1780828156000,-500.0,8.261e-05,2]
[424397421,1780828156000,-500.0,8.261e-05,2]
[424397424,1780828156000,-537.06504678,8.261e-05,2]
[424397419,1780828156000,-500.0,8.261e-05,2]
[424397416,1780828156000,-500.0,8.261e-05,2]
[424397415,1780828156000,-500.0,8.261e-05,2]
[424397417,1780828156000,-500.0,8.261e-05,2]
[424397428,1780828156000,-500.0,8.261e-05,2]
[424397438,1780828156000,-500.0,8.261e-05,2]
[424397449,1780828156000,-1617.79776228,8.427e-05,2]
[424397443,1780828156000,-250.0,8.261e-05,2]
[424397465,1780828156000,-3296.97163064,8.427e-05,2]
[424397464,1780828156000,-1617.79776228,8.427e-05,2]
[424397463,1780828156000,-1617.79776228,8.427e-05,2]
[424397462,1780828156000,-1617.79776228,8.427e-05,2]
[424397460,1780828156000,-1617.79776228,8.427e-05,2]
[424397461,1780828156000,-1617.79776228,8.427e-05,2]
[424397457,1780828156000,-1617.79776228,8.427e-05,2]
[424397459,1780828156000,-1617.79776228,8.427e-05,2]
[424397458,1780828156000,-1617.79776228,8.427e-05,2]
[424397455,1780828156000,-1617.79776228,8.427e-05,2]
[424397456,1780828156000,-1617.79776228,8.427e-05,2]
[424397441,1780828156000,-500.0,8.261e-05,2]